[Event "26th Abu Dhabi Master 2019"]
[Site "Abu Dhabi"]
[Date "2019.08.03"]
[Round "2.23"]
[White "Viani Antonio Dcunha"]
[Black "Santos Ruiz, Miguel"]
[Result "1/2-1/2"]
[ECO "B92"]
[WhiteElo "2371"]
[BlackElo "2567"]
[Annotator "ChessBase"]
[PlyCount "135"]
[EventDate "2019.08.02"]
[EventType "swiss"]
[EventCountry "UAE"]
[SourceTitle "playchess.com"]
[Source "ChessBase"]
[SourceQuality "1"]
[TimeControl "5400+30"]

1. e4 {[%emt 0:02:08]} c5 {[%emt 0:00:00]} 2. Nf3 {[%emt 0:00:08]} d6 {[%emt 0:00:00]} 3. d4 {[%emt 0:00:19]} cxd4 {[%emt 0:00:00]} 4. Nxd4 {[%emt 0:00:08]} Nf6 {[%emt 0:00:00]} 5. Nc3 {[%emt 0:00:12]} a6 {[%emt 0:00:00]} 6. Be2 {[%emt 0:00:24]} e5 {[%emt 0:00:12]} 7. Nb3 {[%emt 0:00:11]} Be7 {[%emt 0:00:07]} 8. O-O {[%emt 0:00:10]} O-O {[%emt 0:00:10]} 9. Kh1 {[%emt 0:01:53]} Re8 {[%emt 0:00:08]} 10. a4 {[%emt 0:06:07]} Nc6 {[%emt 0:03:40]} 11. f4 {[%emt 0:01:39]} exf4 {[%emt 0:15:07]} 12. Bxf4 {[%emt 0:00:58]} Ne5 {[%emt 0:00:51]} 13. Nd4 {[%emt 0:04:33]} Qc7 {[%emt 0:11:30]} 14. Bg5 {[%emt 0:09:06]} Be6 {[%emt 0:04:49]} 15. Nf5 {[%emt 0:15:01]} Bxf5 {[%emt 0:00:30]} 16. Rxf5 {[%emt 0:00:14]} Qc5 {[%emt 0:09:37]} 17. Qd2 {[%emt 0:06:08]} Nfd7 {[%emt 0:04:33]} 18. Be3 {[%emt 0:05:26]} Qc6 {[%emt 0:03:06]} 19. Raf1 {[%emt 0:04:59]} Bf8 {[%emt 0:04:17]} 20. Bd4 {[%emt 0:07:16]} g6 {[%emt 0:03:14]} 21. R5f2 {[%emt 0:00:59]} Rac8 {[%emt 0:02:39]} 22. Bd3 {[%emt 0:07:12]} Bg7 {[%emt 0:03:05]} 23. Nd5 {[%emt 0:03:11]} Re6 {[%emt 0:08:47]} 24. Nf4 {[%emt 0:08:06]} Rf6 {[%emt 0:04:12]} 25. Nd5 {[%emt 0:00:54]} Rxf2 {[%emt 0:01:44]} 26. Qxf2 {[%emt 0:00:18]} Re8 {[%emt 0:00:23]} 27. b3 {[%emt 0:05:51]} Qc8 {[%emt 0:01:37]} 28. Ne3 {[%emt 0:03:37]} Re6 {[%emt 0:04:17]} 29. Ng4 {[%emt 0:00:26]} Qf8 {[%emt 0:05:26]} 30. Nxe5 {[%emt 0:00:43]} Bxe5 {[%emt 0:00:52]} 31. Be3 {[%emt 0:01:56]} Rf6 {[%emt 0:01:02]} 32. Qe2 {[%emt 0:00:44]} Rxf1+ {[%emt 0:04:01]} 33. Qxf1 {[%emt 0:00:05]} Nf6 {[%emt 0:00:00]} 34. Qf3 {[%emt 0:01:53]} Qe8 {[%emt 0:00:00]} 35. g3 {[%emt 0:01:11]} Qc6 {[%emt 0:00:30]} 36. Bg5 {[%emt 0:00:28]} Kg7 {[%emt 0:00:12]} 37. Bxf6+ {[%emt 0:01:10]} Bxf6 {[%emt 0:00:06]} 38. Bc4 {[%emt 0:00:19]} b5 {[%emt 0:00:13]} 39. axb5 {[%emt 0:00:07]} axb5 {[%emt 0:00:02]} 40. Bd3 {[%emt 0:00:11]} Qc3 {[%emt 0:00:45]} 41. Kg2 {[%emt 0:00:44]} b4 {[%emt 0:00:41]} 42. Qe2 {[%emt 0:00:11]} Bd4 {[%emt 0:00:29]} 43. Bc4 {[%emt 0:01:18]} Bc5 {[%emt 0:01:43]} 44. Qd3 {[%emt 0:00:49]} Qe1 {[%emt 0:00:13]} 45. Qf3 {[%emt 0:00:28]} f6 {[%emt 0:00:18]} 46. Qe2 {[%emt 0:01:43]} Qg1+ {[%emt 0:00:21]} 47. Kh3 {[%emt 0:00:06]} h5 {[%emt 0:00:11]} 48. Qf1 {[%emt 0:00:47]} Qe3 {[%emt 0:00:16]} 49. Qd3 {[%emt 0:00:26]} Qe1 {[%emt 0:01:38]} 50. Qe2 {[%emt 0:01:00]} Qc1 {[%emt 0:00:06]} 51. Bd3 {[%emt 0:00:25]} Bd4 {[%emt 0:00:33]} 52. Qf1 {[%emt 0:00:21]} Qg5 {[%emt 0:00:08]} 53. Qf4 {[%emt 0:00:36]} Qc5 {[%emt 0:00:04]} 54. Kg2 {[%emt 0:00:31]} Be5 {[%emt 0:00:43]} 55. Qf2 {[%emt 0:00:10]} Bd4 {[%emt 0:00:27]} 56. Qf4 {[%emt 0:00:02]} Be3 {[%emt 0:00:06]} 57. Qf3 {[%emt 0:00:09]} Qd4 {[%emt 0:00:13]} 58. Qe2 {[%emt 0:00:38]} Qa7 {[%emt 0:00:22]} 59. Bc4 {[%emt 0:00:11]} Bc5 {[%emt 0:00:10]} 60. Qd1 {[%emt 0:00:33]} Qa2 {[%emt 0:00:18]} 61. Kh3 {[%emt 0:00:24]} Qb2 {[%emt 0:01:00]} 62. Qd5 {[%emt 0:01:04]} Qxc2 {[%emt 0:00:11]} 63. Qf7+ {[%emt 0:00:24]} Kh6 {[%emt 0:00:03]} 64. Qxf6 {[%emt 0:00:12]} Qxe4 {[%emt 0:00:43]} 65. Qh8+ {[%emt 0:00:23]} Kg5 {[%emt 0:00:03]} 66. Qd8+ {[%emt 0:00:07]} Kh6 {[%emt 0:00:48]} 67. Qh8+ {[%emt 0:00:07]} Kg5 {[%emt 0:00:02]} 68. Qd8+ {[%emt 0:00:06]} 1/2-1/2

[Event "26th Abu Dhabi Master 2019"]
[Site "Abu Dhabi"]
[Date "2019.08.03"]
[Round "2.24"]
[White "Istratescu, Andrei"]
[Black "Deshpande, Aniruddha"]
[Result "1-0"]
[ECO "B36"]
[WhiteElo "2555"]
[BlackElo "2234"]
[Annotator "ChessBase"]
[PlyCount "123"]
[EventDate "2019.08.02"]
[EventType "swiss"]
[EventCountry "UAE"]
[SourceTitle "playchess.com"]
[Source "ChessBase"]
[SourceQuality "1"]
[TimeControl "5400+30"]

1. e4 {[%emt 0:05:10]} c5 {[%emt 0:00:10]} 2. Nf3 {[%emt 0:00:04]} Nc6 {[%emt 0:00:08]} 3. d4 {[%emt 0:00:05]} cxd4 {[%emt 0:00:15]} 4. Nxd4 {[%emt 0:00:04]} g6 {[%emt 0:00:13]} 5. c4 {[%emt 0:00:11]} Nf6 {[%emt 0:03:31]} 6. Nc3 {[%emt 0:00:32]} d6 {[%emt 0:00:15]} 7. Be2 {[%emt 0:01:06]} Nxd4 {[%emt 0:00:34]} 8. Qxd4 {[%emt 0:00:04]} Bg7 {[%emt 0:00:06]} 9. Be3 {[%emt 0:00:03]} O-O {[%emt 0:00:06]} 10. Qd2 {[%emt 0:00:03]} Be6 {[%emt 0:03:33]} 11. Rc1 {[%emt 0:01:25]} a5 {[%emt 0:01:14]} 12. f3 {[%emt 0:03:56]} a4 {[%emt 0:00:44]} 13. Nb5 {[%emt 0:04:00]} Nd7 {[%emt 0:02:15]} 14. h4 {[%emt 0:09:48]} Qa5 {[%emt 0:02:27]} 15. Nd4 {[%emt 0:01:51]} Nc5 {[%emt 0:09:24]} 16. h5 {[%emt 0:03:57]} Bd7 {[%emt 0:01:32]} 17. hxg6 {[%emt 0:05:57]} hxg6 {[%emt 0:00:28]} 18. Rc3 {[%emt 0:07:19]} Ne6 {[%emt 0:09:16]} 19. Kf2 {[%emt 0:02:31]} a3 {[%emt 0:08:23]} 20. b3 {[%emt 0:06:15]} Qe5 {[%emt 0:02:42]} 21. Nxe6 {[%emt 0:04:40]} Bxe6 {[%emt 0:08:20]} 22. Rd3 {[%emt 0:03:33]} Qb2 {[%emt 0:07:18]} 23. Bd4 {[%emt 0:05:49]} Qxd2 {[%emt 0:03:36]} 24. Rxd2 {[%emt 0:00:01]} Bxd4+ {[%emt 0:00:08]} 25. Rxd4 {[%emt 0:00:01]} Kg7 {[%emt 0:00:26]} 26. Ke3 {[%emt 0:01:35]} g5 {[%emt 0:02:23]} 27. Rdd1 {[%emt 0:00:33]} Rh8 {[%emt 0:03:42]} 28. g3 {[%emt 0:03:27]} f5 {[%emt 0:06:39]} 29. Rxh8 {[%emt 0:02:05]} Rxh8 {[%emt 0:00:05]} 30. exf5 {[%emt 0:00:04]} Bxf5 {[%emt 0:00:10]} 31. Rd5 {[%emt 0:00:02]} Kf6 {[%emt 0:04:34]} 32. g4 {[%emt 0:01:07]} Bb1 {[%emt 0:02:03]} 33. Ra5 {[%emt 0:00:38]} Bxa2 {[%emt 0:00:21]} 34. Rxa3 {[%emt 0:00:03]} Bb1 {[%emt 0:00:06]} 35. Ra5 {[%emt 0:00:03]} Bc2 {[%emt 0:02:29]} 36. Rb5 {[%emt 0:00:24]} Ra8 {[%emt 0:00:31]} 37. Bd3 {[%emt 0:01:13]} Bxd3 {[%emt 0:03:48]} 38. Kxd3 {[%emt 0:00:25]} Ra7 {[%emt 0:00:06]} 39. Ke4 {[%emt 0:00:53]} e6 {[%emt 0:02:26]} 40. Kd4 {[%emt 0:00:41]} Ra1 {[%emt 0:01:44]} 41. Rxb7 {[%emt 0:00:37]} Rd1+ {[%emt 0:00:25]} 42. Ke3 {[%emt 0:00:10]} Re1+ {[%emt 0:00:29]} 43. Kd2 {[%emt 0:00:05]} Rf1 {[%emt 0:00:08]} 44. Ke2 {[%emt 0:00:03]} Rc1 {[%emt 0:00:36]} 45. Rd7 {[%emt 0:02:56]} Ke5 {[%emt 0:01:05]} 46. Kd3 {[%emt 0:00:13]} Rb1 {[%emt 0:00:44]} 47. Kc3 {[%emt 0:00:38]} Rc1+ {[%emt 0:00:05]} 48. Kb4 {[%emt 0:02:47]} Rf1 {[%emt 0:03:25]} 49. Rf7 {[%emt 0:00:37]} Kd4 {[%emt 0:00:23]} 50. Kb5 {[%emt 0:00:17]} Rc1 {[%emt 0:02:37]} 51. Rf6 {[%emt 0:01:43]} Rc3 {[%emt 0:01:20]} 52. b4 {[%emt 0:00:32]} Rxc4 {[%emt 0:01:19]} 53. Rxe6 {[%emt 0:00:38]} d5 {[%emt 0:00:01]} 54. Ka5 {[%emt 0:02:48]} Kc3 {[%emt 0:05:09]} 55. b5 {[%emt 0:03:34]} d4 {[%emt 0:00:02]} 56. b6 {[%emt 0:00:04]} d3 {[%emt 0:01:25]} 57. b7 {[%emt 0:00:58]} d2 {[%emt 0:00:05]} 58. Re3+ {[%emt 0:01:53]} Kd4 {[%emt 0:00:52]} 59. Re4+ {[%emt 0:00:29]} Kc3 {[%emt 0:00:28]} 60. b8=Q {[%emt 0:01:37]} d1=Q {[%emt 0:00:39]} 61. Qe5+ {[%emt 0:00:14]} Kc2 {[%emt 0:00:31]} 62. Rxc4+ {[%emt 0:00:06]} 1-0

[Event "26th Abu Dhabi Master 2019"]
[Site "Abu Dhabi"]
[Date "2019.08.03"]
[Round "2.25"]
[White "Senthil Maran K"]
[Black "Shevchenko, Kirill"]
[Result "1-0"]
[ECO "D71"]
[WhiteElo "2222"]
[BlackElo "2536"]
[Annotator "ChessBase"]
[PlyCount "74"]
[EventDate "2019.08.02"]
[EventType "swiss"]
[EventCountry "UAE"]
[SourceTitle "playchess.com"]
[Source "ChessBase"]
[SourceQuality "1"]
[TimeControl "5400+30"]

1. d4 {[%emt 0:04:55]} Nf6 {[%emt 0:00:00]} 2. c4 {[%emt 0:00:38]} g6 {[%emt 0:00:12]} 3. g3 {[%emt 0:00:15]} Bg7 {[%emt 0:00:14]} 4. Bg2 {[%emt 0:00:11]} O-O {[%emt 0:00:25]} 5. Nf3 {[%emt 0:00:12]} d6 {[%emt 0:00:28]} 6. O-O {[%emt 0:00:18]} Nbd7 {[%emt 0:00:12]} 7. Qc2 {[%emt 0:00:12]} c6 {[%emt 0:09:00]} 8. Nc3 {[%emt 0:02:20]} e5 {[%emt 0:00:29]} 9. e4 {[%emt 0:03:24]} Qc7 {[%emt 0:06:25]} 10. h3 {[%emt 0:02:46]} Re8 {[%emt 0:05:25]} 11. Be3 {[%emt 0:00:26]} a5 {[%emt 0:10:52]} 12. Rad1 {[%emt 0:01:32]} b5 {[%emt 0:10:06]} 13. c5 {[%emt 0:07:12]} dxc5 {[%emt 0:07:05]} 14. dxe5 {[%emt 0:06:03]} Nxe5 {[%emt 0:00:25]} 15. Nxe5 {[%emt 0:00:50]} Qxe5 {[%emt 0:05:11]} 16. Bf4 {[%emt 0:02:45]} Qe7 {[%emt 0:10:08]} 17. Bd6 {[%emt 0:06:15]} Qb7 {[%emt 0:03:32]} 18. e5 {[%emt 0:04:15]} Nd7 {[%emt 0:00:47]} 19. f4 {[%emt 0:08:08]} c4 {[%emt 0:07:40]} 20. Ne4 {[%emt 0:04:57]} Qb6+ {[%emt 0:07:52]} 21. Kh2 {[%emt 0:00:49]} Ra7 {[%emt 0:03:26]} 22. f5 {[%emt 0:09:51]} gxf5 {[%emt 0:07:02]} 23. Rxf5 {[%emt 0:03:48]} h6 {[%emt 0:00:16]} 24. Rdf1 {[%emt 0:02:33]} Nxe5 {[%emt 0:01:19]} 25. Bc5 {[%emt 0:03:55]} Qd8 {[%emt 0:02:02]} 26. Nf6+ {[%emt 0:04:12]} Bxf6 {[%emt 0:00:07]} 27. Rxf6 {[%emt 0:00:08]} Rd7 {[%emt 0:00:29]} 28. Rxh6 {[%emt 0:02:01]} Rd3 {[%emt 0:00:27]} 29. Qc1 {[%emt 0:11:21]} Rd2 {[%emt 0:01:00]} 30. Rf2 {[%emt 0:05:30]} Rxf2 {[%emt 0:01:17]} 31. Bxf2 {[%emt 0:00:12]} Re6 {[%emt 0:00:33]} 32. Rxe6 {[%emt 0:01:28]} Bxe6 {[%emt 0:00:21]} 33. Qh6 {[%emt 0:01:10]} Ng6 {[%emt 0:00:46]} 34. Bxc6 {[%emt 0:01:01]} Qf6 {[%emt 0:00:45]} 35. Qd2 {[%emt 0:00:48]} Bxh3 {[%emt 0:00:38]} 36. Kxh3 {[%emt 0:00:28]} Qxc6 {[%emt 0:00:06]} 37. Qd8+ {[%emt 0:00:14]} Kh7 {[%emt 0:00:15]} 1-0

[Event "26th Abu Dhabi Master 2019"]
[Site "Abu Dhabi"]
[Date "2019.08.03"]
[Round "2.26"]
[White "Mahalakshmi, M."]
[Black "Sengupta, Deep"]
[Result "0-1"]
[ECO "B06"]
[WhiteElo "2173"]
[BlackElo "2558"]
[Annotator "ChessBase"]
[PlyCount "76"]
[EventDate "2019.08.02"]
[EventType "swiss"]
[EventCountry "UAE"]
[SourceTitle "playchess.com"]
[Source "ChessBase"]
[SourceQuality "1"]
[TimeControl "5400+30"]

1. d4 {[%emt 0:00:00]} g6 {[%emt 0:00:00]} 2. c4 {[%emt 0:01:56]} Bg7 {[%emt 0:00:00]} 3. Nf3 {[%emt 0:01:31]} d6 {[%emt 0:00:00]} 4. e4 {[%emt 0:07:28]} Bg4 {[%emt 0:00:42]} 5. Be2 {[%emt 0:01:13]} Nc6 {[%emt 0:01:34]} 6. Be3 {[%emt 0:02:57]} e5 {[%emt 0:01:14]} 7. d5 {[%emt 0:05:07]} Bxf3 {[%emt 0:00:07]} 8. Bxf3 {[%emt 0:00:32]} Nd4 {[%emt 0:00:06]} 9. Bxd4 {[%emt 0:01:46]} exd4 {[%emt 0:00:03]} 10. Qa4+ {[%emt 0:03:28]} Qd7 {[%emt 0:08:58]} 11. Qxd7+ {[%emt 0:01:30]} Kxd7 {[%emt 0:00:02]} 12. Nd2 {[%emt 0:02:37]} Ne7 {[%emt 0:06:41]} 13. Nb3 {[%emt 0:02:38]} a5 {[%emt 0:01:51]} 14. Rd1 {[%emt 0:05:50]} c5 {[%emt 0:02:56]} 15. dxc6+ {[%emt 0:05:32]} Nxc6 {[%emt 0:00:14]} 16. a4 {[%emt 0:00:55]} Kc7 {[%emt 0:01:18]} 17. O-O {[%emt 0:01:41]} Ra6 {[%emt 0:01:38]} 18. c5 {[%emt 0:04:29]} dxc5 {[%emt 0:00:38]} 19. Be2 {[%emt 0:00:37]} Rb6 {[%emt 0:04:20]} 20. Bb5 {[%emt 0:00:47]} Na7 {[%emt 0:12:57]} 21. Rc1 {[%emt 0:03:16]} Rxb5 {[%emt 0:11:00]} 22. axb5 {[%emt 0:02:37]} b6 {[%emt 0:00:10]} 23. f4 {[%emt 0:03:49]} Nxb5 {[%emt 0:02:48]} 24. e5 {[%emt 0:01:15]} Kc6 {[%emt 0:07:20]} 25. Kf2 {[%emt 0:02:00]} Rd8 {[%emt 0:02:35]} 26. Rfe1 {[%emt 0:03:08]} Nc7 {[%emt 0:01:24]} 27. Nd2 {[%emt 0:03:26]} Ne6 {[%emt 0:00:53]} 28. g3 {[%emt 0:00:28]} a4 {[%emt 0:00:50]} 29. Ne4 {[%emt 0:02:41]} b5 {[%emt 0:01:06]} 30. g4 {[%emt 0:03:47]} c4 {[%emt 0:00:22]} 31. Kg3 {[%emt 0:01:26]} d3 {[%emt 0:01:15]} 32. Red1 {[%emt 0:01:01]} g5 {[%emt 0:00:40]} 33. Nxg5 {[%emt 0:01:38]} Nxg5 {[%emt 0:00:02]} 34. fxg5 {[%emt 0:00:08]} Bxe5+ {[%emt 0:00:04]} 35. Kf3 {[%emt 0:00:04]} Bxb2 {[%emt 0:00:06]} 36. Rb1 {[%emt 0:00:12]} c3 {[%emt 0:00:26]} 37. Rf1 {[%emt 0:00:11]} a3 {[%emt 0:00:17]} 38. Ke3 {[%emt 0:00:24]} c2 {[%emt 0:00:18] Kd4} 0-1

[Event "26th Abu Dhabi Master 2019"]
[Site "Abu Dhabi"]
[Date "2019.08.03"]
[Round "2.27"]
[White "Sanal, Vahap"]
[Black "Mahdian, Anousha"]
[Result "1-0"]
[ECO "B10"]
[WhiteElo "2520"]
[BlackElo "2118"]
[Annotator "ChessBase"]
[PlyCount "93"]
[EventDate "2019.08.02"]
[EventType "swiss"]
[EventCountry "UAE"]
[SourceTitle "playchess.com"]
[Source "ChessBase"]
[SourceQuality "1"]
[TimeControl "5400+30"]

1. e4 {[%emt 0:08:45]} c6 {[%emt 0:00:00]} 2. Nf3 {[%emt 0:00:49]} d5 {[%emt 0:00:00]} 3. Nc3 {[%emt 0:00:09]} dxe4 {[%emt 0:00:00]} 4. Nxe4 {[%emt 0:00:08]} Nf6 {[%emt 0:00:00]} 5. Nxf6+ {[%emt 0:00:57]} exf6 {[%emt 0:00:00]} 6. d4 {[%emt 0:00:15]} Bd6 {[%emt 0:00:00]} 7. Bd3 {[%emt 0:07:09]} O-O {[%emt 0:00:03]} 8. O-O {[%emt 0:00:13]} Bg4 {[%emt 0:00:10]} 9. Re1 {[%emt 0:02:09]} Nd7 {[%emt 0:03:48]} 10. c3 {[%emt 0:10:19]} Qc7 {[%emt 0:09:30]} 11. h3 {[%emt 0:04:13]} Bh5 {[%emt 0:00:06]} 12. Be3 {[%emt 0:04:02]} Rfe8 {[%emt 0:00:20]} 13. g4 {[%emt 0:09:45]} Bg6 {[%emt 0:00:05]} 14. Nh4 {[%emt 0:01:27]} Bxd3 {[%emt 0:11:05]} 15. Qxd3 {[%emt 0:00:53]} g6 {[%emt 0:00:03]} 16. Ng2 {[%emt 0:02:16]} Nf8 {[%emt 0:01:37]} 17. Bh6 {[%emt 0:04:46]} Ne6 {[%emt 0:06:24]} 18. Qf3 {[%emt 0:01:18]} Qd8 {[%emt 0:04:28]} 19. Rad1 {[%emt 0:02:42]} Bf8 {[%emt 0:07:54]} 20. Bxf8 {[%emt 0:03:13]} Kxf8 {[%emt 0:01:06]} 21. h4 {[%emt 0:06:37]} Kg7 {[%emt 0:02:35]} 22. Ne3 {[%emt 0:02:09]} Qc7 {[%emt 0:06:26]} 23. d5 {[%emt 0:01:01]} Qf4 {[%emt 0:00:44]} 24. Qg2 {[%emt 0:02:28]} Nc5 {[%emt 0:01:48]} 25. b4 {[%emt 0:03:59]} Nd7 {[%emt 0:05:23]} 26. Rd4 {[%emt 0:05:28]} Qc7 {[%emt 0:00:52]} 27. Red1 {[%emt 0:02:01]} c5 {[%emt 0:01:38]} 28. d6 {[%emt 0:00:18]} Qc6 {[%emt 0:03:20]} 29. Qxc6 {[%emt 0:01:40]} bxc6 {[%emt 0:00:02]} 30. bxc5 {[%emt 0:00:08]} Re5 {[%emt 0:02:47]} 31. Rb1 {[%emt 0:02:41]} Rxc5 {[%emt 0:00:05]} 32. Rb7 {[%emt 0:06:25]} Ne5 {[%emt 0:04:43]} 33. Re4 {[%emt 0:02:34]} Rd8 {[%emt 0:06:41]} 34. f4 {[%emt 0:00:49]} Nf3+ {[%emt 0:00:03]} 35. Kf2 {[%emt 0:00:33]} Nd2 {[%emt 0:00:05]} 36. Rd4 {[%emt 0:01:37]} Rxd6 {[%emt 0:00:10]} 37. Ke2 {[%emt 0:00:20]} Rxd4 {[%emt 0:02:31]} 38. cxd4 {[%emt 0:00:02]} Ra5 {[%emt 0:00:04]} 39. Kxd2 {[%emt 0:00:07]} Rxa2+ {[%emt 0:00:04]} 40. Nc2 {[%emt 0:00:09]} g5 {[%emt 0:00:23]} 41. hxg5 {[%emt 0:00:38]} fxg5 {[%emt 0:00:02]} 42. fxg5 {[%emt 0:00:48]} Kg6 {[%emt 0:00:07]} 43. Kd3 {[%emt 0:00:20]} a5 {[%emt 0:00:15]} 44. Rc7 {[%emt 0:00:20]} Kxg5 {[%emt 0:00:15]} 45. Rxf7 {[%emt 0:00:05]} h6 {[%emt 0:00:24]} 46. Rg7+ {[%emt 0:00:04]} Kf6 {[%emt 0:00:10]} 47. Rc7 {[%emt 0:00:07]} 1-0

[Event "26th Abu Dhabi Master 2019"]
[Site "Abu Dhabi"]
[Date "2019.08.03"]
[Round "2.28"]
[White "Vatsal Singhania"]
[Black "Xu, Yi"]
[Result "0-1"]
[ECO "B85"]
[WhiteElo "2213"]
[BlackElo "2524"]
[Annotator "ChessBase"]
[PlyCount "132"]
[EventDate "2019.08.02"]
[EventType "swiss"]
[EventCountry "UAE"]
[SourceTitle "playchess.com"]
[Source "ChessBase"]
[SourceQuality "1"]
[TimeControl "5400+30"]

1. e4 {[%emt 0:00:00]} c5 {[%emt 0:00:09]} 2. Nf3 {[%emt 0:00:00]} d6 {[%emt 0:00:27]} 3. d4 {[%emt 0:00:00]} cxd4 {[%emt 0:00:03]} 4. Nxd4 {[%emt 0:00:01]} Nf6 {[%emt 0:00:03]} 5. Nc3 {[%emt 0:00:06]} a6 {[%emt 0:00:05]} 6. Be2 {[%emt 0:00:05]} e6 {[%emt 0:00:06]} 7. O-O {[%emt 0:00:15]} Qc7 {[%emt 0:00:37]} 8. a4 {[%emt 0:00:05]} Be7 {[%emt 0:00:22]} 9. Be3 {[%emt 0:00:06]} b6 {[%emt 0:03:12]} 10. f4 {[%emt 0:01:13]} Bb7 {[%emt 0:01:00]} 11. Bf3 {[%emt 0:00:11]} Nbd7 {[%emt 0:08:08]} 12. f5 {[%emt 0:05:31]} e5 {[%emt 0:04:34]} 13. Nb3 {[%emt 0:02:34]} Rc8 {[%emt 0:01:33]} 14. Qd3 {[%emt 0:08:11]} O-O {[%emt 0:08:02]} 15. Qd2 {[%emt 0:05:55]} Qb8 {[%emt 0:12:03]} 16. g4 {[%emt 0:05:22]} h6 {[%emt 0:08:00]} 17. Bxh6 {[%emt 0:07:11]} gxh6 {[%emt 0:01:17]} 18. Qxh6 {[%emt 0:00:04]} Nh7 {[%emt 0:02:40]} 19. h4 {[%emt 0:02:47]} f6 {[%emt 0:06:34]} 20. g5 {[%emt 0:03:27]} fxg5 {[%emt 0:05:40]} 21. Qe6+ {[%emt 0:07:28]} Kg7 {[%emt 0:00:04]} 22. Bh5 {[%emt 0:01:18]} Rce8 {[%emt 0:03:39]} 23. hxg5 {[%emt 0:15:11]} Bxg5 {[%emt 0:01:27]} 24. Bxe8 {[%emt 0:17:43]} Qxe8 {[%emt 0:00:54]} 25. Qxe8 {[%emt 0:00:34]} Rxe8 {[%emt 0:00:05]} 26. Rad1 {[%emt 0:00:04]} Be7 {[%emt 0:01:14]} 27. Kf2 {[%emt 0:01:03]} Ng5 {[%emt 0:05:44]} 28. Ke3 {[%emt 0:00:56]} Kf7 {[%emt 0:01:02]} 29. Rg1 {[%emt 0:04:47]} Rg8 {[%emt 0:04:02]} 30. Rg2 {[%emt 0:06:35]} Nf6 {[%emt 0:01:26]} 31. Rdg1 {[%emt 0:01:11]} Nfxe4 {[%emt 0:01:36]} 32. Nxe4 {[%emt 0:02:34]} Bxe4 {[%emt 0:00:06]} 33. Rxg5 {[%emt 0:00:09]} Rxg5 {[%emt 0:00:11]} 34. Rxg5 {[%emt 0:00:04]} Bxc2 {[%emt 0:00:04]} 35. Rg4 {[%emt 0:00:04]} Bxb3 {[%emt 0:01:37]} 36. Rb4 {[%emt 0:00:04]} Bc2 {[%emt 0:00:36]} 37. Rxb6 {[%emt 0:00:45]} Bg5+ {[%emt 0:08:25]} 38. Ke2 {[%emt 0:00:35]} Bxa4 {[%emt 0:02:33]} 39. Rxd6 {[%emt 0:00:05]} e4 {[%emt 0:00:09]} 40. Re6 {[%emt 0:02:49]} Bb5+ {[%emt 0:00:26]} 41. Kf2 {[%emt 0:00:13]} Bd3 {[%emt 0:00:09]} 42. b3 {[%emt 0:03:07]} Bd2 {[%emt 0:00:15]} 43. Re5 {[%emt 0:00:29]} Kf6 {[%emt 0:00:20]} 44. Re8 {[%emt 0:00:15]} Kxf5 {[%emt 0:00:13]} 45. Re7 {[%emt 0:00:35]} Kf4 {[%emt 0:00:05]} 46. Rf7+ {[%emt 0:00:04]} Ke5 {[%emt 0:00:05]} 47. Re7+ {[%emt 0:00:03]} Kd4 {[%emt 0:00:05]} 48. Rd7+ {[%emt 0:01:32]} Kc3 {[%emt 0:00:09]} 49. Re7 {[%emt 0:00:04]} Kxb3 {[%emt 0:00:14]} 50. Re5 {[%emt 0:00:03]} a5 {[%emt 0:00:13]} 51. Re8 {[%emt 0:00:26]} e3+ {[%emt 0:00:18]} 52. Rxe3 {[%emt 0:00:04]} Bxe3+ {[%emt 0:00:03]} 53. Kxe3 {[%emt 0:00:05]} Kc3 {[%emt 0:00:08]} 54. Kf4 {[%emt 0:00:03]} a4 {[%emt 0:00:06]} 55. Ke5 {[%emt 0:00:03]} a3 {[%emt 0:00:05]} 56. Kd5 {[%emt 0:00:02]} a2 {[%emt 0:00:06]} 57. Ke5 {[%emt 0:00:02]} a1=Q {[%emt 0:00:09]} 58. Kd5 {[%emt 0:00:03]} Qa5+ {[%emt 0:00:09]} 59. Kd6 {[%emt 0:00:01]} Kd4 {[%emt 0:00:07]} 60. Kd7 {[%emt 0:00:02]} Kd5 {[%emt 0:00:07]} 61. Ke7 {[%emt 0:00:04]} Qb6 {[%emt 0:00:09]} 62. Kf7 {[%emt 0:00:03]} Qe6+ {[%emt 0:00:09]} 63. Kg7 {[%emt 0:00:02]} Qg6+ {[%emt 0:00:07]} 64. Kf8 {[%emt 0:00:03]} Qh7 {[%emt 0:00:17]} 65. Ke8 {[%emt 0:00:02]} Ke6 {[%emt 0:00:09]} 66. Kd8 {[%emt 0:00:02]} Qd7# {[%emt 0:00:08]} 0-1

[Event "26th Abu Dhabi Master 2019"]
[Site "Abu Dhabi"]
[Date "2019.08.03"]
[Round "2.29"]
[White "Soham Kamotra"]
[Black "Iniyan, P."]
[Result "1/2-1/2"]
[ECO "A20"]
[WhiteElo "2136"]
[BlackElo "2524"]
[Annotator "ChessBase"]
[PlyCount "107"]
[EventDate "2019.08.02"]
[EventType "swiss"]
[EventCountry "UAE"]
[SourceTitle "playchess.com"]
[Source "ChessBase"]
[SourceQuality "1"]
[TimeControl "5400+30"]

1. c4 {[%emt 0:00:00]} e5 {[%emt 0:00:00]} 2. g3 {[%emt 0:00:00]} f5 {[%emt 0:00:26]} 3. Bg2 {[%emt 0:00:00]} Nf6 {[%emt 0:00:06]} 4. Nc3 {[%emt 0:00:00]} Nc6 {[%emt 0:00:06]} 5. e3 {[%emt 0:00:27]} e4 {[%emt 0:06:59]} 6. d3 {[%emt 0:01:37]} Bb4 {[%emt 0:00:12]} 7. Nge2 {[%emt 0:03:24]} Ne5 {[%emt 0:18:58]} 8. dxe4 {[%emt 0:00:43]} Nxe4 {[%emt 0:00:20]} 9. Qc2 {[%emt 0:09:33]} Bxc3+ {[%emt 0:11:55]} 10. Nxc3 {[%emt 0:00:25]} Nc5 {[%emt 0:00:07]} 11. O-O {[%emt 0:01:21]} O-O {[%emt 0:00:06]} 12. Rd1 {[%emt 0:08:19]} d6 {[%emt 0:04:47]} 13. b4 {[%emt 0:04:50]} Ne6 14. c5 {[%emt 0:00:35]} a5 {[%emt 0:00:53]} 15. cxd6 {[%emt 0:04:39]} axb4 {[%emt 0:00:14]} 16. Nd5 {[%emt 0:05:58]} cxd6 {[%emt 0:05:01]} 17. Nxb4 {[%emt 0:02:57]} Kh8 {[%emt 0:00:13]} 18. Bb2 {[%emt 0:01:30]} Qb6 {[%emt 0:03:21]} 19. Nd5 {[%emt 0:04:02]} Qc5 {[%emt 0:02:07]} 20. Qxc5 {[%emt 0:00:47]} Nxc5 {[%emt 0:00:14]} 21. Nb6 {[%emt 0:04:41]} Ra6 {[%emt 0:12:58]} 22. Nxc8 {[%emt 0:01:29]} Rxc8 {[%emt 0:00:06]} 23. Rac1 {[%emt 0:02:58]} Raa8 {[%emt 0:07:29]} 24. Bxe5 {[%emt 0:01:29]} dxe5 {[%emt 0:00:11]} 25. Rd5 {[%emt 0:00:03]} Na4 {[%emt 0:02:46]} 26. Rxc8+ {[%emt 0:00:43]} Rxc8 {[%emt 0:00:05]} 27. Rxe5 {[%emt 0:00:11]} Rc1+ {[%emt 0:00:06]} 28. Bf1 {[%emt 0:00:04]} g6 {[%emt 0:00:06]} 29. Re8+ {[%emt 0:01:23]} Kg7 {[%emt 0:00:13]} 30. Re7+ {[%emt 0:00:04]} Kh6 {[%emt 0:00:46]} 31. Rxb7 {[%emt 0:00:14]} Rc2 {[%emt 0:00:07]} 32. Kg2 {[%emt 0:01:34]} Rxa2 {[%emt 0:01:14]} 33. Bc4 {[%emt 0:00:25]} Rb2 {[%emt 0:00:06]} 34. Rxb2 {[%emt 0:02:49]} Nxb2 {[%emt 0:00:06]} 35. Bb5 {[%emt 0:00:03]} Nd1 {[%emt 0:01:08]} 36. Kf1 {[%emt 0:00:27]} Kg5 {[%emt 0:00:44]} 37. Bc6 {[%emt 0:02:47]} Nb2 {[%emt 0:00:43]} 38. Ke2 {[%emt 0:00:14]} Nc4 {[%emt 0:00:07]} 39. Bd5 {[%emt 0:00:14]} Nb6 {[%emt 0:01:07]} 40. Bb3 {[%emt 0:00:18]} Nd7 {[%emt 0:00:24]} 41. h4+ {[%emt 0:01:30]} Kf6 {[%emt 0:00:19]} 42. Bc2 {[%emt 0:00:21]} h6 {[%emt 0:06:52]} 43. Kd2 {[%emt 0:03:56]} g5 {[%emt 0:01:02]} 44. f4 {[%emt 0:01:02]} Nf8 {[%emt 0:01:48]} 45. Kd3 {[%emt 0:00:27]} gxf4 {[%emt 0:02:34]} 46. exf4 {[%emt 0:00:14]} Ne6 {[%emt 0:00:08]} 47. Kc4 {[%emt 0:00:58]} Ng7 {[%emt 0:02:18]} 48. Bd1 {[%emt 0:00:07]} Ne6 {[%emt 0:00:06]} 49. Be2 {[%emt 0:00:34]} Ng7 {[%emt 0:00:07]} 50. Kd5 {[%emt 0:00:15]} Ne6 {[%emt 0:00:08]} 51. Bd1 {[%emt 0:01:52]} Ng7 {[%emt 0:00:06]} 52. Be2 {[%emt 0:00:55]} Ne6 {[%emt 0:00:06]} 53. Bd3 {[%emt 0:00:03]} Ng7 {[%emt 0:00:11]} 54. Be2 {[%emt 0:01:28] Ke5+} 1/2-1/2